{"text_format":"1","workbook":"xlsx","n_sheets":9,"sheets":["Einleitung","Substitution","bauliche Veränderungen","Grenznutzen","finanzielle Auswirkungen","ökologische Auswirkungen","individuelle Daten","Grunddaten","Zwischenrechnungen"],"not_rendered":{"charts":0,"images":2,"macros":1,"external_links":0,"defined_names":7,"comments":0,"pivot_tables":0},"unopened":[],"bounds":{"document_bytes":16777216,"sheet_cells":100000,"rows_first":2000,"rows_last":500,"rows_between":2000,"halvings":0,"cell_chars":16384,"cell_head_chars":4096},"cells_cut":0,"cells_raw":0,"read":"whole","date_system":"1900"}

{"sheet":"Einleitung","index":0,"n_rows":17,"n_cols":1,"rows_kept":17,"cut":false,"hidden":false,"merged":[]}
[]
[]
["In Anlehnung an das Projekt „Nachhaltige Biomassenutzung in Biogasanlagen auf der Grundlage der Wirtschaftsdüngerpotenziale in Niedersachsen – Bauernhof Niedersachsen“ ist das nachfolgende Exceltool als eine Berechnungs- und Entscheidungshilfe für Biogasanlagenbetreiber erstellt worden."]
[]
["Zum Hintergrund:"]
[]
["Das Bundesland Niedersachsen weist nach Angaben des Nährstoffberichts 2012/2013 in Bezug auf Wirtschaftsdünger in den Veredelungsregionen einen Nährstoffüberhang von bis zu 54 kg P2O5/ha LF aus tierischen Ausscheidungen und Gärresten auf; es müssen daher jährlich ca. 33.000 t Phosphat (P2O5) aus diesen Regionen exportiert werden. Andererseits liegen in den Ackerbauregionen im südlichen und östlichen Niedersachsen Phosphatdefizite vor, die bislang mit mineralischen Düngemitteln ausgeglichen werden. Wenn diese zukünftig durch Nährstoffe aus diesen überschüssigen Wirtschaftsdüngern ersetzt werden sollen, wäre eine vorausgehende energetische Nutzung dieser Wirtschaftsdünger in Biogasanlagen der beschriebenen Ackerbauregionen sowohl unter ökonomischen als auch ökologischen Gesichtspunkten sinnvoll. Nach dieser energetischen Nutzung würden diese Nährstoffe anschließend als Gärreste auf den umliegenden landwirtschaftlichen Nutzflächen als wertvolles organisches Düngemittel ausgebracht werden."]
[]
["Das vorliegende Exceltool soll dazu dienen, Betreibern von Biogasanlagen, vornehmlich in den östlichen und südöstlichen Regionen Niedersachsens, welche erstmalig Wirtschaftsdünger als Substrat in ihren Biogasanlagen einsetzen würden, wirtschaftliche und ökologische Auswirkungen für den Betriebsablauf der bestehenden Anlagen aufzuzeigen. Zahlreiche zusätzliche Gesetze und Verordnungen aus den Bereichen Bau-, Veterinär- und Transportrecht sind beim Einsatz von Wirtschaftsdüngern in Biogasanlagen zu beachten und sind mit den entsprechenden Auswirkungen in die folgenden Berechnungselemente eingeflossen. Darüber hinaus müssen die baulichen, organisatorischen und prozesstechnischen Voraussetzungen geschaffen werden, um einen stapelbaren oder flüssigen Wirtschaftsdünger in den bereits vorhandenen Vergärungsprozess integrieren zu können. Die Umstellung einer Biogasanlage auf den Einsatz von entsprechenden Wirtschaftsdüngern hat somit weitreichende betriebswirtschaftliche und ökologische Auswirkungen, die in den folgenden einzelnen Reitern des Exceltools individuell nach Eingabe der biogasanlagenspezifischen Daten errechnet und abgelesen werden können."]
[]
["(Für detaillierte Informationen und Ausführungen wird an dieser Stelle auf den Abschlussbericht über das o.g. Projekt verwiesen, der auf der Homepage des Niedersächsischen Ministeriums für Ernährung, Landwirtschaft und Verbraucherschutz als pdf-version einsehbar ist.)"]
[]
["Bedienung des Excel-Berechnungstools:"]
[]
["Das Exceltool ist aus einzelnen Bausteinen, den sogenannten Reitern in der unteren Leiste, zusammengestellt. Die Reiter sind im Einzelnen: \n1. Substitution, 2. bauliche Veränderungen, 3. Grenznutzen, 4. finanzielle Auswirkungen, 5. ökologische Auswirkungen, \n6. individuelle Daten. Der Reiter \"Substitution\" errechnet, welche Mengen an Energiepflanzen durch Wirtschaftsdünger substituiert werden können. Außerdem wird berechnet, ob die Voraussetzungen für den Güllebonus erfüllt sind oder nicht. Die Investitionskosten für den Umbau der Biogasanlage werden im Reiter \"bauliche Veränderungen\" erfasst. Der Reiter \"Grenznutzen\" dient der Berechnung der finanziellen Auswirkungen des Einsatzes einer Tonne Wirtschaftsdünger. Die gesamten, jährlichen finanziellen Auswirkungen, die sich für die Biogasanlage ergeben, können im Reiter \"finanzielle Auswirkungen\" errechnet werden.  Der Reiter \"ökologische Auswirkungen\" ermöglicht die Berechnung der Emissionsdifferenzen bezüglich des Treibhauseffekts und der Versauerung, die sich durch den Einsatz des Wirtschaftsdüngers in der Biogasanlage ergeben. Im letzten Reiter \"individuelle Daten\" hat der Anwender die Möglichkeit, eigenhändig Wirtschaftsgüter und/oder Energiepflanzen mit aufzunehmen, die bislang in dieser Anwendung nicht hinterlegt sind.\nInnerhalb dieser Reiter sind einzelne Tabellenfelder mit verschiedenen Farben markiert, die folgendes bedeuten: \ngrün = ein Wert wird vorgegeben, kann aber vom Benutzer auch geändert werden, wenn der Benutzer genauere Werte hat, blau = Wert muss vom Nutzer eingetragen werden. Die Werte in den Tabellenfeldern, die keine andere Farbe haben, werden vom Programm berechnet. Bei der Auswahl von Wirtschaftsdüngern, Energiepflanzen und Transportmitteln gibt es ein Auswahlmenü. Die vorgegebenen Werte in den grünen Feldern sind in der nächsten Spalte hinterlegt, welche allerdings ausgeblendet ist. Durch Einblenden dieser Spalte kann auf die ursprünglichen Werte zurückgegriffen werden, falls die Werte geändert wurden."]
[]
["Weiterhin laufen einzelne Berechnungsschritte im Hintergrund ab, sodass für den Anwender in den entsprechenden beschrifteten Zeilen die fertig berechneten Ergebnisse präsentiert werden. Zur Erläuterung einzelner Werte und Zeilen sind an diese teilweise kleine Informationssymbole angefügt. Klickt man mit dem Cursor (Mauspfeil) auf diese Informationssymbole, öffnet sich ein erläuternder Schriftzug zu dieser Berechnungszeile oder -wert."]

{"sheet":"Substitution","index":1,"n_rows":41,"n_cols":9,"rows_kept":41,"cut":false,"hidden":false,"merged":[[3,0,3,8],[1,0,1,8],[4,0,4,8],[17,0,17,8],[29,0,29,8],[28,0,28,8],[16,0,16,8]]}
[]
["Mit dieser Berechnungseinheit soll ermöglicht werden, die aktuellen Substrat- und Gärrestmengen zu erfassen und mögliche Substitutionen einiger dieser Teilmengen durch Wirtschaftsdünger aufzuzeigen. In einem zweiten Schritt wird analysiert, ob mit dem neuen Substratmix die nötigen Voraussetzungen erfüllt wären, um den Güllebonus für den neuen Substratmix erhalten zu können. Hinter den Berechnungen steht der Grundsatz, dass die zu produzierende Menge an Methan und somit auch die elektrische Leistung der Biogasanlage auch nach der Substitution einzelner Substrate gleich bleibt."]
[]
["Welche Energiepflanzen werden eingesetzt und welche Mengen (jährlich)?"]
["Diese erste Berechnungstabelle soll dazu dienen, die aktuellen Substrateinsatzmengen der Biogasanlage zu erfassen und die entsprechenden daraus resultierenden Gärreste zu berechnen. Ein Grunddatensatz an Substraten ist im Programm hinterlegt. Wenn weitere Substrate eingesetzt werden, wählen Sie bitte „Alternative 1“ und/oder „Alternative 2“. Im Reiter \"individuelle Daten\" müssen dazu die entsprechenden Daten eingetragen werden. Die Reihenfolge der von Ihnen gewählten Substrate wird im Folgenden auch die Substitutionsreihenfolge darstellen. Das bedeutet, das Substrat, welches Sie als Energiepflanze 1 wählen, wird auch als erstes gegen den später gewählten Wirtschaftsdünger ersetzt. Die zu ersetzende Menge richtet sich nach den Energie- bzw. Methangehalten der einzelnen Substrate."]
[]
[null,null,"Substrat","aktuelle Menge","aktuelle Gärrestmenge","Einsparung Substrat","neue Menge Substrat","Anteil am Gesamtsubstrat","neue Gärrestmenge"]
[null,"Energiepflanze 1. (t FM)","-",0,{"$f":"D8*HLOOKUP(C8,Grunddaten!$B$17:$H$26,10,FALSE)","v":0},{"$f":"D8-G8","v":0},{"$f":"Zwischenrechnungen!F6","v":0},{"$f":"IF($G$26=0,0,G8/$G$26)","v":0},{"$f":"G8*HLOOKUP(C8,Grunddaten!$B$17:$H$26,10,FALSE)","v":0}]
[null,"Energiepflanze 2. (t FM)","-",0,{"$f":"D9*HLOOKUP(C9,Grunddaten!$B$17:$H$26,10,FALSE)","v":0},{"$f":"D9-G9","v":0},{"$f":"Zwischenrechnungen!F7","v":0},{"$f":"IF($G$26=0,0,G9/$G$26)","v":0},{"$f":"G9*HLOOKUP(C9,Grunddaten!$B$17:$H$26,10,FALSE)","v":0}]
[null,"Energiepflanze 3. (t FM)","-",0,{"$f":"D10*HLOOKUP(C10,Grunddaten!$B$17:$H$26,10,FALSE)","v":0},0,{"$f":"Zwischenrechnungen!F8","v":0},0,{"$f":"G10*HLOOKUP(C10,Grunddaten!$B$17:$H$26,10,FALSE)","v":0}]
[null,"Energiepflanze 4. (t FM)","-",0,{"$f":"D11*HLOOKUP(C11,Grunddaten!$B$17:$H$26,10,FALSE)","v":0},0,{"$f":"Zwischenrechnungen!F9","v":0},0,{"$f":"G11*HLOOKUP(C11,Grunddaten!$B$17:$H$26,10,FALSE)","v":0}]
[null,"Energiepflanze 5. (t FM)","-",0,{"$f":"D12*HLOOKUP(C12,Grunddaten!$B$17:$H$26,10,FALSE)","v":0},0,{"$f":"Zwischenrechnungen!F10","v":0},0,{"$f":"G12*HLOOKUP(C12,Grunddaten!$B$17:$H$26,10,FALSE)","v":0}]
[null,"Energiepflanze 6. (t FM)","-",0,{"$f":"D13*HLOOKUP(C13,Grunddaten!$B$17:$H$26,10,FALSE)","v":0},0,{"$f":"Zwischenrechnungen!F11","v":0},0,{"$f":"G13*HLOOKUP(C13,Grunddaten!$B$17:$H$26,10,FALSE)","v":0}]
[null,"Summe Energiepflanzen (EP)",null,{"$f":"SUM(D8:D13)","v":0},{"$f":"SUM(E8:E13)","v":0},{"$f":"SUM(F8:F13)","v":0},0,{"$f":"SUM(H8:H13)","v":0},{"$f":"SUM(I8:I13)","v":0}]
[]
[]
["Welcher Wirtschaftsdünger wird bereits eingesetzt, in welcher Menge und welche zusätzlichen Mengen sollen noch eingesetzt werden?"]
["In dieser Tabelle geben Sie bitte ein, welcher Wirtschaftsdünger wird bereits in welcher Menge eingesetzt und welche zusätzlichen Mengen an Wirtschaftsdünger sind für die Zukunft geplant. Sie können entweder aus den vorgegebenen Wirtschaftsdüngern auswählen oder über die „Alternative 1“ oder „Alternative 2“ Ihre individuellen Wirtschaftsdünger einsetzen. Wenn Sie die Alternative 1 oder 2 wählen, müssen Sie jedoch unter dem Reiter „individuelle Daten“ die entsprechenden Werte für Ihre Alternative 1 oder 2 eintragen."]
[]
[null,null,"Wirtschaftsdünger","aktuelle Menge","aktuelle Gärrestmenge","zusätzliche Menge Substrat","neue Menge Substrat","Anteil am Gesamtsubstrat","neue Gärrestmenge"]
[null,"Wirtschaftsdünger 1. (t)","-",0,{"$f":"D21*HLOOKUP(C21,Grunddaten!$B$1:$G$12,12,FALSE)","v":0},0,{"$f":"D21+F21","v":0},{"$f":"IF($G$26=0,0,G21/$G$26)","v":0},{"$f":"G21*HLOOKUP(C21,Grunddaten!$B$1:$G$12,12,FALSE)","v":0}]
[null,"Wirtschaftsdünger 2. (t)","-",0,{"$f":"D22*HLOOKUP(C22,Grunddaten!$B$1:$G$12,12,FALSE)","v":0},0,{"$f":"D22+F22","v":0},{"$f":"IF($G$26=0,0,G22/$G$26)","v":0},{"$f":"G22*HLOOKUP(C22,Grunddaten!$B$1:$G$12,12,FALSE)","v":0}]
[null,"Wirtschaftsdünger 3. (t)","-",0,{"$f":"D23*HLOOKUP(C23,Grunddaten!$B$1:$G$12,12,FALSE)","v":0},0,0,0,{"$f":"G23*HLOOKUP(C23,Grunddaten!$B$1:$G$12,12,FALSE)","v":0}]
[null,"Summe Wirtschaftsdünger (WD)",null,{"$f":"SUM(D21:D23)","v":0},{"$f":"SUM(E21:E23)","v":0},{"$f":"SUM(F21:F23)","v":0},0,{"$f":"SUM(H21:H23)","v":0},{"$f":"SUM(I21:I23)","v":0}]
[]
[null,"Gesamtmenge (EP+WD)",null,{"$f":"D14+D24","v":0},{"$f":"E14+E24","v":0},{"$f":"F24-F14","v":0},{"$f":"G14+G24","v":0},{"$f":"H14+H24","v":0},{"$f":"I14+I24","v":0}]
[]
[]
["Güllebonus"]
["Diese Tabelle gibt Aufschluss darüber, ob zum einen bislang die Voraussetzungen zum Erhalt des Güllebonuses erfüllt waren und zum anderen, ob nach der Substratumstellung die Voraussetzungen zum Erhalt des Güllebonus erfüllt wären."]
[]
[null,"Leistung der Anlage (kW)",0]
[null,"Laufzeit (h/a)",0]
[]
[null,"Anteil WD am Gesamtsubstrat aktuell",{"$f":"IF(D26=0,0,D24/D26)","v":0}]
[null,"Voraussetzungen für Güllebonus erfüllt",{"$f":"IF(C35<0.3,\"nein\",\"ja\")","v":"nein"}]
[null,"Güllebonus aktuell (€)",{"$f":"IF(C35<0.3,0,IF(C32>=500,950*C33/100,IF(C32>=150,((C32-150)+600)*C33/100,C32*4*C33/100)))","v":0}]
[]
[null,"Anteil WD am Gesamtsubstrat neu",{"$f":"H24","v":0}]
[null,"Voraussetzungen für Güllebonus erfüllt",{"$f":"IF(C39<0.3,\"nein\",\"ja\")","v":"nein"}]
[null,"Güllebonus neu (€)",{"$f":"IF(C39<0.3,0,IF(C32>=500,950*C33/100,IF(C32>=150,((C32-150)+600)*C33/100,C32*4*C33/100)))","v":0}]

{"sheet":"bauliche Veränderungen","index":2,"n_rows":80,"n_cols":7,"rows_kept":80,"cut":false,"hidden":false,"merged":[[1,0,1,10]]}
[]
["Mit diesem Berechnungstool soll die Möglichkeit gegeben werden, nötige Umbaumaßnahmen an einer bestehenden NawaRo-Biogasanlage in einzelnen Anlagenelementen aufzuzeigen und anschließend mit einer monetären Bewertung zu versehen. Die mit einer Substratumstellung verbundenen baulichen Veränderungen an der Anlage werden in den folgenden Rubriken eingeteilt und mit monetären und mengenmässigen Durchschnittswerten vorgegeben. Sie können diese Durchschnittswerte übernehmen oder für Ihre Anlage individuelle Werte angeben. Eine jede Berechnung ist mit einer kurzen Erläuterung hinterlegt, sodass Sie jeden Berechnungsschritt nachvollziehen können. Diese Beschreibung finden Sie in den jeweiligen Informationszeichen in dem jeweiligen Kasten. Die im Folgenden angegebenen Elemente und Zahlen sind an Ihre jeweiligen Biogasanlage anzupassen und müssen als Richtwerte verstanden werden. \n\nDie Berechnungen entsprechen den Berechnungen aus dem Bericht \"Nachhaltige Biomassenutzung in Biogasanlagen auf der Grundlage der Wirtschaftsdüngerpotenziale in Niedersachsen - Bauernhof Niedersachsen\". Genauere Informationen bezüglich der berücksichtigten finanziellen Auswirkungen befinden sich im Bericht  in dem Abschnitt \"Bauliche Maßnahmen an bestehenden Anlagen\" auf den Seiten 18-21. Ein ausführlicheres Beispiel zur Berechnung der Emissionsdifferenz findet sich auf den Seiten 33-35."]
[]
[null,"Gärrestlager"]
[null,null,null,"Gärreste pro Jahr (m³)",null,{"$f":"Substitution!E26","v":0}]
[null,null,null,"vorh. Gärsubstratlager (m³)",null,0]
[null,null,null,"Lagerungszeit Gärrest (Monate)",null,6,{"$f":"F7","v":6}]
[null,null,null,{"$f":"CONCATENATE(\"neues Gärsubstratlagervolumen für  mind. (\",F7,\") Monate (m³)\")","v":"neues Gärsubstratlagervolumen für  mind. (6) Monate (m³)"},null,{"$f":"Substitution!I26/(12/F7)","v":0}]
[null,null,null,"theoretisch zusätzl. benötigtes Gärsubstratlager  (m³)",null,{"$f":"IF(F8-F6>0,F8-F6,0)","v":0}]
[null,null,null,"Sicherheitszuschlag Gärrestlager (m³)",null,{"$f":"G10","v":0},{"$f":"F9*0.2","v":0}]
[null,null,null,"Größe zusätzliches Gärrestlager (m³)",null,{"$f":"F9+F10","v":0}]
[null,null,null,"Kosten pro m³ (€)",null,{"$f":"G12","v":141},{"$f":"IF(F11<500,141,IF(F11<1500,73,IF(F11<3000,54,IF(F11<5000,44,35))))","v":141}]
[null,null,null,"Baukosten Gärrestlager (€)",null,{"$f":"F11*F12","v":0}]
[]
[null,null,null,"Anzahl Rührwerk",null,0]
[null,null,null,"Kosten Rührwerk (€)",null,{"$f":"G16","v":8000},8000]
[null,null,null,"Gesamtkosten Rührwerk (€)",null,{"$f":"F15*F16","v":0}]
[]
[null,null,null,"Rohrleitungen/Technik/Elektrik (€)",null,0,30000]
[]
[null,null,null,"Gesamtkosten Gärrestlager (€)",null,{"$f":"F13+F17+F19","v":0}]
[]
[null,"Einfriedung"]
[null,null,null,"zusätzliche Einzäunung (m)",null,0]
[null,null,null,"Preis pro Meter Zaun (€)",null,{"$f":"G25","v":20},20]
[]
[null,null,null,"Kosten Einzäunung (€)",null,{"$f":"F24*F25","v":0}]
[]
[null,"Toreinfahrt (automatisch)"]
[null,null,null,"Kosten für neue Toreinfahrt (€)",null,0]
[]
[null,"Waageeinrichtung"]
[null,null,null,"Kosten Waageeinrichtung (€)",null,0,4000]
[]
[null,"Infrastruktur auf der Anlage "]
[null,null,null,"Neu anzulegende Infrastruktur (m²)",null,0]
[null,null,null,"Kosten pro m² (€)",null,{"$f":"G37","v":60},60]
[]
[null,null,null,"Kosten für neue Infrastruktur (€)",null,{"$f":"F36*F37","v":0}]
[]
[null,"Lager feste Wirtschaftsdünger   "]
[null,null,null,"Größe Betonplatte (m²)",null,0]
[null,null,null,"Länge Betonwand (m)",null,0]
[null,null,null,"Bedachung und Seitenverkleidung (m²)",null,0]
[null,null,null,"Kosten Betonplatte pro m² (€)",null,{"$f":"G45","v":150},150]
[null,null,null,"Kosten Betonwand pro m (€)",null,{"$f":"G46","v":250},250]
[null,null,null,"Kosten Bedachung und S. (€)",null,150,150]
[]
[null,null,null,"Kosten Lager feste Wirtschaftsdünger (€)",null,{"$f":"F42*F45+F43*F46+F44*F47","v":0}]
[]
[null,"Lager flüssige Wirtschaftsdünger   "]
[null,null,null,"benötigtes Volumen neues Lager (m³)",null,0]
[null,null,null,"Anzahl Rührwerke",null,0]
[null,null,null,"Größe Abtankplatz (m²)",null,0]
[null,null,null,"Baukosten Lager pro m³ (€)",null,{"$f":"G55","v":120},120]
[null,null,null,"Kosten pro Rührwerk (€)",null,{"$f":"G56","v":8000},8000]
[null,null,null,"Kosten Abtankplatz pro m² (€)",null,{"$f":"G57","v":160},160]
[null,null,null,"Leitung und Elektrik (€)",null,0,10000]
[]
[null,null,null,"Kosten Lager für flüssige Wirtschaftsdünger (€)",null,{"$f":"F52*F55+F53*F56+F54*F57+F58","v":0}]
[]
[null,"Hauptfermenter"]
[null,null,null,"Kosten Nassvermahlung integriert (€)",null,0,50000]
[null,null,null,"evtl. modifizierte Eintragstechnik",null,0,10000]
[null,null,null,"Anzahl Rührwerke",null,0]
[null,null,null,"Kosten pro Rührwerk (€)",null,{"$f":"G66","v":8000},8000]
[null,null,null,"Anzahl zusätzliche Heizleitungen",null,0]
[null,null,null,"Kosten pro Heizleitung (€)",null,{"$f":"G68","v":5000},5000]
[]
[null,null,null,"Kosten Hauptvermenter (€)",null,{"$f":"F63+F64+F65*F66+F67*F68","v":0}]
[]
[null,"Planungs-, Gutachten- und Genehmigungskosten "]
[null,null,null,"Investitionskosten ohne Planungskosten etc. (€)",null,{"$f":"F21+F27+F30+F33+F39+F49+F60+F70","v":0}]
[null,null,null,"Prozentsatz für Planungskosten etc.",null,{"$f":"G74","v":7.4999999999999997E-2},7.4999999999999997E-2]
[]
[null,null,null,"Planungs-, Gutachten- und Genehmigungskosten (€)",null,{"$f":"F73*F74","v":0}]
[]
[null,null,null,"Sonstiges (€)",null,0]
[]
[null,"Gesamte Investitionskosten",null,null,null,{"$f":"F73+F76+F78","v":0}]

{"sheet":"Grenznutzen","index":3,"n_rows":52,"n_cols":7,"rows_kept":52,"cut":false,"hidden":false,"merged":[[1,0,1,10]]}
[]
["Die Berechnung des Grenznutzen ermöglicht abzuschätzen, welcher Ertrag sich bei welcher Substitutionskombination Energieplanze/Wirtschaftsdünger ergibt. \nFür die Berechnung wird angenommen, dass eine Tonne Wirtschaftsdünger zusätzlich eingesetzt und eine entsprechende Menge einer Energiepflanze substituiert wird, \nsodass der Brennwert der BGA konstant bleibt. Berücksichtigt werden nur die direkten finanziellen Auswirkungen. \nFolgende finanzielle Auswirkungen der Substitution werden betrachtet: \n\n - Durch den Einsatz von Wirtschaftsdünger in der BGA entstehen zusätzliche Transportkosten. Die Einsparung an Transportkosten für die eingesparte Menge an Energiepflanzen \n   wird vernachlässigt.\n - Durch die Substitution werden weniger Energiepflanzen benötigt. Kosten für die eingesparte Menge an Energiepflanzen werden daher eingespart.\n - Durch den Einsatz von Wirtschaftsdünger in der BGA erhöht sich die Menge an Nährstoffen im Gärrest, sodass der Wert des Gärrestes steigt. Zur Bestimmung der Wertsteigerung\n   werden die zusätzlichen Nährstoffe mit den Nährstoffpreisen bestimmt. Dazu wird berücksichtigt, dass die Ausbringung von Gärrest aufwendiger ist als die Ausbringung von Mineraldünger.\n - Durch die Abnahme des Wirtschaftsdüngers von einem abgebenden Betrieb entstehen dem BGA-Betreiber abhängig von der Art des Wirtschaftsdüngers Kosten oder er kann Einnahmen erzielen.\n\nDie Berechnungen entsprechen den Berechnungen aus dem Bericht \"Nachhaltige Biomassenutzung in Biogasanlagen auf der Grundlage der Wirtschaftsdüngerpotenziale in Niedersachsen -\nBauernhof Niedersachsen\". Genauere Informationen bezüglich der berücksichtigten finanziellen Auswirkungen befinden sich im Bericht in dem Abschnitt \"Logistische Betrachtung\" \nauf den Seiten 21-25. Ein ausführlicheres Beispiel zur Berechnung der Emissionsdifferenz findet sich auf den Seiten 36-38."]
[]
[null,"Eingesetzter Wirtschaftsdünger",null,"-"]
[]
[null,"Ersetzte Energiepflanzen",null,"-"]
[null,{"$f":"CONCATENATE(\"eingesparte Menge an \",D6,\" (t)\")","v":"eingesparte Menge an - (t)"},null,{"$f":"IF(HLOOKUP(D6,Grunddaten!B17:F22,6,FALSE)=0,0,HLOOKUP(D4,Grunddaten!B1:E6,6,FALSE)/HLOOKUP(D6,Grunddaten!B17:F22,6,FALSE))","v":0}]
[]
[null,"Transportkosten"]
[null,null,null,"Transportmedium",null,"-"]
[null,null,null,"Transportdistanz (km)",null,0]
[null,null,null,"variable Kosten pro km und t (€)",null,{"$f":"G12","v":0},{"$f":"HLOOKUP(F10,Grunddaten!B31:E34,3,FALSE)","v":0}]
[null,null,null,"fixe Kosten pro t (€)",null,{"$f":"G13","v":0},{"$f":"HLOOKUP(F10,Grunddaten!B31:E34,4,FALSE)","v":0}]
[]
[null,null,null,"Transportkosten (€)",null,{"$f":"-(F11*F12+F13)","v":0}]
[]
[null,"Einsparung Energiepflanzen"]
[null,null,null,"Menge eingesparter Energiepflanze (t)",null,{"$f":"D7","v":0}]
[null,null,null,"Preis der Energiepflanze pro t (€)",null,{"$f":"G19","v":0},{"$f":"HLOOKUP(D6,Grunddaten!B17:H23,7,FALSE)","v":0}]
[]
[null,null,null,"Einsparung an Energiepflanzen (€)",null,{"$f":"F19*F18","v":0}]
[]
[null,"Wertsteigerung Gärrest"]
[null,null,null,"Stickstoffzuwachs (kg) ",null,{"$f":"HLOOKUP(D4,Grunddaten!B1:G6,3,FALSE)-G6*HLOOKUP(D6,Grunddaten!B17:H23,3,FALSE)","v":0}]
[null,null,null,"Phosphatzuwachs (kg)",null,{"$f":"HLOOKUP(D4,Grunddaten!B1:G6,4,FALSE)-G6*HLOOKUP(D6,Grunddaten!B17:H23,4,FALSE)","v":0}]
[null,null,null,"Kaliumoxidzuwachs (kg)",null,{"$f":"HLOOKUP(D4,Grunddaten!B1:G6,5,FALSE)-G6*HLOOKUP(D6,Grunddaten!B17:H23,5,FALSE)","v":0}]
[null,null,null,"Preis pro kg Stickstoff (€)",null,{"$f":"G27","v":0.67},0.67]
[null,null,null,"Preis pro kg Phosphat (€)",null,{"$f":"G28","v":0.71},0.71]
[null,null,null,"Preis pro kg Kaliumoxid (€)",null,0.6,0.6]
[null,null,null,"Mineraldüngeräquivalent",null,0.6,0.6]
[null,null,null,"Wert des Nährstoffzuwachses (€)",null,{"$f":"F24*F27*F30+F25*F28+F26*F29","v":0}]
[]
[null,null,null,"Stickstoffbedarf pro Hektar (kg)",null,{"$f":"G33","v":70},70]
[null,null,null,"zusätzlich düngbare Fläche mit Gärrest (ha)",null,{"$f":"F24*F30/F33","v":0}]
[null,null,null,"Gesamtstickstoffkonzentration Gärrest (kg/m³)",null,{"$f":"IF(Substitution!E26=0,0,Zwischenrechnungen!K22/Substitution!E26)","v":0}]
[null,null,null,"anrechenbarer Stickstoff aus Gärresrest (kg/m³)",null,{"$f":"F35*F30","v":0}]
[null,null,null,"Ausbringungsmenge Gärrest pro ha (m³)",null,{"$f":"IF(F36=0,0,F33/F36)","v":0}]
[null,null,null,"Ausbringungskosten Gärrest m³ pro ha (€)",null,{"$f":"G38","v":4.1399999999999997},4.1399999999999997]
[null,null,null,"Stickstoffgehalt des verwendeten Mineraldüngers (%)",null,0.3]
[null,null,null,{"$f":"CONCATENATE(\"Ausbringungskosten Mineraldünger \",ROUND(IF(F39>0,F33/F39,0),2),\" kg pro ha (€)\")","v":"Ausbringungskosten Mineraldünger 233,33 kg pro ha (€)"},null,{"$f":"G40","v":4.666666666666667},{"$f":"IF(F39>0,4*(F33/F39)/200,0)","v":4.666666666666667}]
[null,null,null,"zusätzliche Ausbringungskosten (€)",null,{"$f":"F34*(F38-F40)","v":0}]
[]
[null,null,null,"Wertsteigerung Gärrest (€)",null,{"$f":"F31-F41","v":0}]
[]
[null,null,null,"Ausbringungskosten Mineraldünger 200 kg pro ha (€)"]
[]
[null,"Abnahme Wirtschaftsdünger"]
[null,null,null,"Eingesetzter Wirtschaftsdünger",null,{"$f":"D4","v":"-"}]
[null,null,null,"Einnahme/Kosten Abgabe pro t (€)",null,{"$f":"G49","v":0},{"$f":"HLOOKUP(F48,Grunddaten!B1:G7,7,FALSE)","v":0}]
[]
[]
[null,"Gesamtsumme an Einnahmen und Kosten",null,null,null,{"$f":"F15+F21+F43+F49","v":0}]

{"sheet":"finanzielle Auswirkungen","index":4,"n_rows":70,"n_cols":7,"rows_kept":70,"cut":false,"hidden":false,"merged":[[1,0,1,10]]}
[]
["In diesem Excelreiter „finanzielle Auswirkungen“ kann berechnet werden, welche generellen gesamtfinanziellen Auswirkungen der Einsatz des Wirtschaftsdüngers haben kann. Die folgenden einzelnen Tabellen „Transportkosten“, „Einsparung Energiepflanzen“, „Wertsteigerung Gärrest“, „Abnahme Wirtschaftsdünger“, „Güllebonus“ und „Investitionskosten“ bilden ganz zum Ende die Berechnungen zum „finanziellen Gesamtvor- oder nachteil“. \n\nDie Transportkosten erfassen den monetären Wert, um den Wirtschaftsdünger auf die Biogasanlage zu bringen. \nDie Einsparungen Energiepflanzen drücken den finanziellen Vorteil aus, der dadurch entsteht, dass weniger Energiepflanzen benötigt werden. \nDer Wertsteigerung Gärrest spiegelt die finanziellen Auswirkungen der durch den zusätzlichen Einsatz von Wirtschaftsdünger erhaltenen Nährstoffe wider. \nUnter der Abnahme Wirtschaftsdünger werden monetäre Geldzahlungen erfasst, die die Biogasanlage evtl. von den abgebenden Betrieben des Wirtschaftsdüngers erhält. \nDer Güllebonus wird anhand der jährlichen elektrischen Leistung der Anlage berechnet und in die Gesamtrechnung mit aufgenommen, sofern die Voraussetzungen dafür erfüllt werden. \nDie Investitionskosten fließen entsprechend der ausgewählten Wirtschaftsdüngerarten aus dem Reiter „bauliche Veränderungen“ mit ein. \n\nEventuell entstehende monetäre Vor- oder Nachteile durch sich ändernden personellen Aufwand werden nicht berücksichtigt."]
[]
[null,"Transportkosten"]
[null,null,null,"Transportdistanz (km)",null,0]
[null,null,null,"Transportmedium für flüssige Wirtschaftsdünger",null,"-"]
[null,null,null,{"$f":"CONCATENATE(\"Transportmedium für 1.WD (\",Substitution!C21,\")\")","v":"Transportmedium für 1.WD (-)"},null,{"$f":"IF(Substitution!C21=\"-\",\"-\",IF(HLOOKUP(Substitution!C21,Grunddaten!$B$1:$G$13,13,FALSE)=\"flüssig\",$F$6,Grunddaten!$E$31))","v":"-"}]
[null,null,null,{"$f":"CONCATENATE(\"Transportmedium für 2.WD (\",Substitution!C22,\")\")","v":"Transportmedium für 2.WD (-)"},null,{"$f":"IF(Substitution!C22=\"-\",\"-\",IF(HLOOKUP(Substitution!C22,Grunddaten!$B$1:$G$13,13,FALSE)=\"flüssig\",$F$6,Grunddaten!$E$31))","v":"-"}]
[null,null,null,{"$f":"CONCATENATE(\"Transportmedium für 3.WD (\",Substitution!C23,\")\")","v":"Transportmedium für 3.WD (-)"},null,{"$f":"IF(Substitution!C23=\"-\",\"-\",IF(HLOOKUP(Substitution!C23,Grunddaten!$B$1:$G$13,13,FALSE)=\"flüssig\",$F$6,Grunddaten!$E$31))","v":"-"}]
[null,null,null,{"$f":"CONCATENATE(\"variable Kosten pro km und t (€) (\",F6,\")\")","v":"variable Kosten pro km und t (€) (-)"},null,{"$f":"G10","v":0},{"$f":"HLOOKUP(F6,Grunddaten!B31:E34,3,FALSE)","v":0}]
[null,null,null,{"$f":"CONCATENATE(\"fixe Kosten pro t (€) (\",F6,\")\")","v":"fixe Kosten pro t (€) (-)"},null,{"$f":"G11","v":0},{"$f":"HLOOKUP(F6,Grunddaten!B31:E34,4,FALSE)","v":0}]
[null,null,null,"variable Kosten pro km und t (€) (Kipp-LKW)",null,0.05,{"$f":"Grunddaten!E33","v":0.05}]
[null,null,null,"fixe Kosten pro t (€)  (Kipp-LKW)",null,4,{"$f":"Grunddaten!E34","v":4}]
[]
[null,null,null,"Transportkosten (€)",null,{"$f":"-(IF(HLOOKUP(Substitution!C21,Grunddaten!B1:G13,13,FALSE)=\"flüssig\",('finanzielle Auswirkungen'!F10*'finanzielle Auswirkungen'!F5+'finanzielle Auswirkungen'!F11)*Substitution!F21,('finanzielle Auswirkungen'!F12*'finanzielle Auswirkungen'!F5+'finanzielle Auswirkungen'!F13)*Substitution!F21)+IF(HLOOKUP(Substitution!C22,Grunddaten!B1:G13,13,FALSE)=\"flüssig\",('finanzielle Auswirkungen'!F10*'finanzielle Auswirkungen'!F5+'finanzielle Auswirkungen'!F11)*Substitution!F22,('finanzielle Auswirkungen'!F12*'finanzielle Auswirkungen'!F5+'finanzielle Auswirkungen'!F13)*Substitution!F22)+IF(HLOOKUP(Substitution!C23,Grunddaten!B1:G13,13,FALSE)=\"flüssig\",('finanzielle Auswirkungen'!F10*'finanzielle Auswirkungen'!F5+'finanzielle Auswirkungen'!F11)*Substitution!F23,('finanzielle Auswirkungen'!F12*'finanzielle Auswirkungen'!F5+'finanzielle Auswirkungen'!F13)*Substitution!F23))","v":0}]
[]
[null,"Einsparung Energiepflanzen"]
[null,null,null,{"$f":"CONCATENATE(\"Preis (€) pro t des 1. Substrats (\",Substitution!C8,\")\")","v":"Preis (€) pro t des 1. Substrats (-)"},null,{"$f":"G18","v":0},{"$f":"HLOOKUP(Substitution!C8,Grunddaten!$B$17:$H$25,7,FALSE)","v":0}]
[null,null,null,{"$f":"CONCATENATE(\"Preis (€) pro t des 2. Substrats (\",Substitution!C9,\")\")","v":"Preis (€) pro t des 2. Substrats (-)"},null,{"$f":"G19","v":0},{"$f":"HLOOKUP(Substitution!C9,Grunddaten!$B$17:$H$25,7,FALSE)","v":0}]
[null,null,null,{"$f":"CONCATENATE(\"Preis (€) pro t des 3. Substrats (\",Substitution!C10,\")\")","v":"Preis (€) pro t des 3. Substrats (-)"},null,0,{"$f":"HLOOKUP(Substitution!C10,Grunddaten!$B$17:$H$25,7,FALSE)","v":0}]
[null,null,null,{"$f":"CONCATENATE(\"Preis (€) pro t des 4. Substrats (\",Substitution!C11,\")\")","v":"Preis (€) pro t des 4. Substrats (-)"},null,0,{"$f":"HLOOKUP(Substitution!C11,Grunddaten!$B$17:$H$25,7,FALSE)","v":0}]
[null,null,null,{"$f":"CONCATENATE(\"Preis (€) pro t des 5. Substrats (\",Substitution!C12,\")\")","v":"Preis (€) pro t des 5. Substrats (-)"},null,0,{"$f":"HLOOKUP(Substitution!C12,Grunddaten!$B$17:$H$25,7,FALSE)","v":0}]
[null,null,null,{"$f":"CONCATENATE(\"Preis (€) pro t des 6. Substrats (\",Substitution!C13,\")\")","v":"Preis (€) pro t des 6. Substrats (-)"},null,0,{"$f":"HLOOKUP(Substitution!C13,Grunddaten!$B$17:$H$25,7,FALSE)","v":0}]
[]
[null,null,null,"Einsparung an Energiepflanzen (€)",null,{"$f":"F18*Substitution!F8+'finanzielle Auswirkungen'!F19*Substitution!F9+'finanzielle Auswirkungen'!F20*Substitution!F10+'finanzielle Auswirkungen'!F21*Substitution!F11+'finanzielle Auswirkungen'!F22*Substitution!F12+'finanzielle Auswirkungen'!F23*Substitution!F13","v":0}]
[]
[null,"Wertsteigerung Gärrest"]
[null,null,null,"Stickstoffzuwachs (kg) ",null,{"$f":"Zwischenrechnungen!L24","v":0}]
[null,null,null,"Phosphatzuwachs (kg)",null,{"$f":"Zwischenrechnungen!O24","v":0}]
[null,null,null,"Kaliumoxidzuwachs (kg)",null,{"$f":"Zwischenrechnungen!R24","v":0}]
[null,null,null,"Preis pro kg Stickstoff (€)",null,{"$f":"G31","v":0.67},0.67]
[null,null,null,"Preis pro kg Phosphat (€)",null,{"$f":"G32","v":0.71},0.71]
[null,null,null,"Preis pro kg Kaliumoxid (€)",null,0.6,0.6]
[null,null,null,"Mineraldüngeräquivalent",null,0.6,0.6]
[null,null,null,"Wert des Nährstoffzuwachses (€)",null,{"$f":"F28*F31*F34+F29*F32+F30*F33","v":0}]
[]
[null,null,null,"Stickstoffbedarf pro Hektar (kg)",null,{"$f":"G37","v":70},70]
[null,null,null,"zusätzlich düngbare Fläche mit Gärrest (ha)",null,{"$f":"F28*F34/F37","v":0}]
[null,null,null,"Stickstoffkonzentration Gärrest (kg/m³)",null,{"$f":"IF(Substitution!I26=0,0,Zwischenrechnungen!L22/Substitution!I26)","v":0}]
[null,null,null,"anrechenbarer Stickstoff aus Gärresrest (kg/m³)",null,{"$f":"F39*F34","v":0}]
[null,null,null,"Ausbringungsmenge pro ha (m³)",null,{"$f":"IF(F39=0,0,F37/F39)","v":0}]
[null,null,null,"Ausbringungskosten Gärrest pro ha (€)",null,{"$f":"G42","v":0},{"$f":"F41*Grenznutzen!F38","v":0}]
[null,null,null,"Stickstoffgehalt des verwendeten Mineraldüngers (%)",null,0.3]
[null,null,null,{"$f":"CONCATENATE(\"Ausbringungskosten Mineraldünger \",ROUND(IF(F43>0,F37/F43,0),2),\" kg pro ha (€)\")","v":"Ausbringungskosten Mineraldünger 233,33 kg pro ha (€)"},null,{"$f":"G44","v":4.666666666666667},{"$f":"IF(F43>0,4*(F37/F43)/200,0)","v":4.666666666666667}]
[null,null,null,"zusätzliche Ausbringungskosten (€)",null,{"$f":"F38*(F44-F42)","v":0}]
[]
[null,null,null,"Wertsteigerung Gärrest (€)",null,{"$f":"F35+F45","v":0}]
[]
[null,"Abnahme Wirtschaftsdünger"]
[null,null,null,{"$f":"CONCATENATE(\"Einnahme/Kosten Abgabe pro t (€) für (\",Substitution!C21,\")\")","v":"Einnahme/Kosten Abgabe pro t (€) für (-)"},null,{"$f":"G50","v":0},{"$f":"HLOOKUP(Substitution!C21,Grunddaten!$B$1:$G$7,7,FALSE)","v":0}]
[null,null,null,{"$f":"CONCATENATE(\"Einnahme/Kosten Abgabe pro t (€) für (\",Substitution!C22,\")\")","v":"Einnahme/Kosten Abgabe pro t (€) für (-)"},null,{"$f":"G51","v":0},{"$f":"HLOOKUP(Substitution!C22,Grunddaten!$B$1:$G$7,7,FALSE)","v":0}]
[null,null,null,{"$f":"CONCATENATE(\"Einnahme/Kosten Abgabe pro t (€) für (\",Substitution!C23,\")\")","v":"Einnahme/Kosten Abgabe pro t (€) für (-)"},null,0,{"$f":"HLOOKUP(Substitution!C23,Grunddaten!$B$1:$G$7,7,FALSE)","v":0}]
[]
[null,null,null,"Summe Einnahme/Kosten für Abnahme (€)",null,{"$f":"F50*Substitution!F21+'finanzielle Auswirkungen'!F51*Substitution!F22+'finanzielle Auswirkungen'!F52*Substitution!F23","v":0}]
[]
[null,"Güllebonus"]
[null,null,null,"Güllebonus in die Berechnung einbeziehen",null,"Ja"]
[]
[null,null,null,"Güllebonus (€)",null,{"$f":"IF(F57=\"Ja\",Substitution!C41-Substitution!C37,0)","v":0}]
[]
[null,"Investitionskosten"]
[null,null,null,"Kosten gesamt (€)",null,{"$f":"'bauliche Veränderungen'!F80","v":0}]
[null,null,null,"Nutzungsdauer (a)",null,10]
[]
[null,null,null,"Abschreibung pro Jahr (€/a)",null,{"$f":"-F62/F63","v":0}]
[]
[null,"Sonstige Einnahmen und Kosten"]
[null,null,null,null,null,0]
[]
[null,"Gesamtsumme an Einnahmen und Kosten",null,null,null,{"$f":"F15+F25+F47+F54+F59+F65","v":0}]

{"sheet":"ökologische Auswirkungen","index":5,"n_rows":67,"n_cols":7,"rows_kept":67,"cut":false,"hidden":false,"merged":[[1,0,1,10]]}
[]
["Auf diesem Tabellenblatt werden die ökologischen Auswirkungen der Substitution von Energiepflanzen durch Wirtschaftsdünger berechnet. \nBetrachtet werden die Wirkungskategorien \"Klimawandel\" und \"Versauerung\". Emissionen bezüglich Klimawandel werden in CO2 äquivalent angegeben, Emissionen bezüglich Versauerung in SO2 \näquivalent. Für die Berechnung der Emissionsdifferenzen wird angenommen, dass der Wirtschaftsdünger des abgebenden Betriebes aktuell zusätzlich auf Ackerflächen des abgebenden Betriebes \nausgebracht wird, ohne eine Düngewirkung zu haben. \n\nBei den Emissionsänderungen werden folgende Punkte betrachtet:\n\n - Durch den erhöhten Transportaufwand entstehen zusätzliche Emissionen.\n - Durch den Einsatz des Wirtschaftsdüngers in der BGA erhöht sich die Nährstoffmenge des Gärrestes. Daher können Mineraldünger eingespart werden und somit auch die produktionsbedingte \n   Emissionen.\n - Durch den Einsatz des Wirtschaftsdüngers werden Energiepflanzen substituiert. Die Emissionen für den Anbau dieser Energiepflanzen können daher eingespart werden. Emissionen für den \n   Anbau anderer Pflanzen sind nicht der Produktion von Biogas anzurechnen. \n - Die Lagerzeit des Wirtschaftsdüngers verringert sich durch den Einsatz in der Biogasanlage. Die Lagerzeitverkürzung führt zu weiteren Emissionseinsparungen.\n - Durch die Substitution wird mehr Stickstoff in Form von Gärrest ausgebracht, aber es wird weniger Wirtschaftsdünger zusätzlich ausgebracht (ohne Düngewirkung) und weniger Mineraldünger. \n   Insgesamt ergibt sich damit eine Emissionseinsparung, da weniger Ammoniakemissionen entstehen.\n - Durch die Substitution entsteht mehr Gärrest, der wiederum Mineraldünger substituiert. Da die Ausbringung von Gärrest aber aufwendiger ist als die Ausbringung von Mineraldünger, \n   erhöht sich der Dieselverbrauch für die Ausbringung und es entstehen zusätzliche Emissionen.\n - Durch den Einsatz des Wirtschaftsdüngers in der BGA sind Umbauten nötig. Durch diese Umbauten entstehen zusätzliche Emissionen.\n\nDie Berechnungen entsprechen den Berechnungen aus dem Bericht \"Nachhaltige Biomassenutzung in Biogasanlagen auf der Grundlage der Wirtschaftsdüngerpotenziale in Niedersachsen -\nBauernhof Niedersachsen\". Genauere Informationen bezüglich der ökologischen Auswirkungen befinden sich im Bericht auf den Seiten 25-29. \nEin ausführlicheres Beispiel zur Berechnung der Emissionsdifferenz findet sich auf den Seiten 43-45."]
[]
[null,"Transport"]
[null,null,null,"Transportmittel für flüssige Wirtschaftsdünger",null,"-"]
[null,null,null,"Transportdistanz (km)",null,0]
[null,null,null,{"$f":"CONCATENATE(\"Transportmedium für 1.WD (\",Substitution!C21,\")\")","v":"Transportmedium für 1.WD (-)"},null,{"$f":"IF(Substitution!C21=\"-\",\"-\",IF(HLOOKUP(Substitution!C21,Grunddaten!B1:G13,13,FALSE)=\"flüssig\",F5,Grunddaten!E31))","v":"-"}]
[null,null,null,{"$f":"CONCATENATE(\"Transportmedium für 2.WD (\",Substitution!C22,\")\")","v":"Transportmedium für 2.WD (-)"},null,{"$f":"IF(Substitution!C22=\"-\",\"-\",IF(HLOOKUP(Substitution!C22,Grunddaten!B1:G13,13,FALSE)=\"flüssig\",F5,Grunddaten!E31))","v":"-"}]
[null,null,null,{"$f":"CONCATENATE(\"Transportmedium für 3.WD (\",Substitution!C23,\")\")","v":"Transportmedium für 3.WD (-)"},null,{"$f":"IF(Substitution!C23=\"-\",\"-\",IF(HLOOKUP(Substitution!C23,Grunddaten!B1:G13,13,FALSE)=\"flüssig\",F5,Grunddaten!E31))","v":"-"}]
[null,null,null,{"$f":"CONCATENATE(\"Distanz leere Zwischenfahrten (\",F5,\")\")","v":"Distanz leere Zwischenfahrten (-)"},null,{"$f":"G10","v":25},{"$f":"IF(F5=\"Gülleauflieger\",F6,25)","v":25}]
[null,null,null,"Distanz leere Zwischenfahrten (Kipp-LKW)",null,25,25]
[null,null,null,{"$f":"CONCATENATE(\"Dieselverbrauch pro km (voll) (\",F5,\")\")","v":"Dieselverbrauch pro km (voll) (-)"},null,0,{"$f":"HLOOKUP('ökologische Auswirkungen'!F5,Grunddaten!B31:E37,6,FALSE)","v":0}]
[null,null,null,{"$f":"CONCATENATE(\"Dieselverbrauch pro km (leer) (\",F5,\")\")","v":"Dieselverbrauch pro km (leer) (-)"},null,0,{"$f":"HLOOKUP(F5,Grunddaten!B31:E37,5,FALSE)","v":0}]
[null,null,null,"Dieselverbrauch pro km (voll) (Kipp-LKW)",null,0.377,{"$f":"Grunddaten!E36","v":0.377}]
[null,null,null,"Dieselverbrauch pro km (leer) (Kipp-LKW)",null,0.13200000000000001,{"$f":"Grunddaten!E35","v":0.13200000000000001}]
[null,null,null,"gesamte Dieselverbrauch",null,{"$f":"Zwischenrechnungen!E48","v":0}]
[]
[null,null,null,"CO2e Emissionen",null,{"$f":"F16*HLOOKUP(\"Diesel\",Grunddaten!B42:G45,3,FALSE)","v":0}]
[null,null,null,"SO2e Emissionen",null,{"$f":"F16*HLOOKUP(\"Diesel\",Grunddaten!B42:G45,4,FALSE)","v":0}]
[]
[null,"Einsparung Mineraldünger"]
[null,null,null,"Mineraldüngeräquivalent",null,{"$f":"G22","v":0.6},0.6]
[null,null,null,"Einsparung Mineraldünger Stickstoff (kg)",null,{"$f":"F22*Zwischenrechnungen!L24","v":0}]
[null,null,null,"Einsparung Mineraldünger Phosphat (kg)",null,{"$f":"Zwischenrechnungen!O24","v":0}]
[null,null,null,"Einsparung Mineraldünger Kaliumoxid (kg)",null,{"$f":"Zwischenrechnungen!R24","v":0}]
[]
[null,null,null,"CO2e Emissionen",null,{"$f":"-(F23*HLOOKUP(\"Herstellung Stickstoff\",Grunddaten!B42:G45,3,FALSE)+F24*HLOOKUP(\"Herstellung Phosphat\",Grunddaten!B42:G45,3,FALSE)+F25*HLOOKUP(\"Herstellung Kaliumoxid\",Grunddaten!B42:G45,3,FALSE))","v":0}]
[null,null,null,"SO2e Emissionen",null,{"$f":"-(F23*HLOOKUP(\"Herstellung Stickstoff\",Grunddaten!B42:G45,4,FALSE)+F24*HLOOKUP(\"Herstellung Phosphat\",Grunddaten!B42:G45,4,FALSE)+F25*HLOOKUP(\"Herstellung Kaliumoxid\",Grunddaten!B42:G45,4,FALSE))","v":0}]
[]
[null,"Einsparung Anbau Energiepflanzen"]
[null,null,null,"CO2e Emissionen",null,{"$f":"-Zwischenrechnungen!C38","v":0}]
[null,null,null,"SO2e Emissionen",null,{"$f":"-Zwischenrechnungen!D38","v":0}]
[]
[null,"Emissionseinsparung durch Lagerzeitverkürzung um 90%"]
[null,null,null,"CO2e Emissionen",null,{"$f":"-Zwischenrechnungen!G35","v":0}]
[null,null,null,"SO2e Emissionen",null,{"$f":"-Zwischenrechnungen!H35","v":0}]
[]
[null,"Emission durch Ausbringungsverluste"]
[null,null,null,"Stickstoffzuwachs im Gärrest (kg)",null,{"$f":"Zwischenrechnungen!L24","v":0}]
[null,null,null,"Einsparung Mineraldünger Stickstoff (kg)",null,{"$f":"F23","v":0}]
[null,null,null,"Stickstoff in der zusätzlichen Menge an Wirtschaftsdünger (kg)",null,{"$f":"Zwischenrechnungen!L35","v":0}]
[]
[null,null,null,"CO2e Emissionen",null,{"$f":"Zwischenrechnungen!M40","v":0}]
[null,null,null,"SO2e Emissionen",null,{"$f":"Zwischenrechnungen!N40","v":0}]
[]
[null,"Dieselverbrauch Ausbringung"]
[null,null,null,"Stickstoffzuwachs im Gärrest (kg)",null,{"$f":"F39","v":0}]
[null,null,null,"Zuwachs an anrechenbarem Stickstoff im Gärrest (kg)",null,{"$f":"F47*F22","v":0}]
[null,null,null,"Stickstoffbedarf pro Hektar (kg)",null,{"$f":"G49","v":70},70]
[null,null,null,"zusätzlich mit Gärrest düngbare Fläche (ha)",null,{"$f":"IF(F49=0,0,F48/F49)","v":0}]
[null,null,null,"Stickstoffkonzentration Gärrest (kg/m³)",null,{"$f":"IF(Substitution!I26=0,0,Zwischenrechnungen!L22/Substitution!I26)","v":0}]
[null,null,null,"Konzentration anrechenbarer Stickstoff im Gärrest (kg/m³)",null,{"$f":"F51*F22","v":0}]
[null,null,null,"Ausbringungsmenge pro ha (m³)",null,{"$f":"IF(F52=0,0,F49/F52)","v":0}]
[null,null,null,"Dieselverbrauch Ausbringung Mineraldünger pro Hektar (l)",null,{"$f":"G54","v":1.05},1.05]
[null,null,null,"Dieselverbrauch Ausbringung Gärrest pro Hektar (l)",null,{"$f":"G55","v":10},10]
[null,null,null,"zusätzlicher Dieselverbrauch (l)",null,{"$f":"(F55-F54)*F50","v":0}]
[]
[null,null,null,"CO2e Emissionen",null,{"$f":"F56*HLOOKUP(\"Diesel\",Grunddaten!B42:G45,3,FALSE)","v":0}]
[null,null,null,"SO2e Emissionen",null,{"$f":"F56*HLOOKUP(\"Diesel\",Grunddaten!B42:G45,4,FALSE)","v":0}]
[]
[null,"Umbauten"]
[null,null,null,"CO2e Emissionen",null,5000]
[null,null,null,"SO2e Emissionen",null,15]
[]
[null,"Gesamtemissionen"]
[null,null,null,"CO2e Emissionen",null,{"$f":"F18+F27+F31+F35+F43+F58+F62","v":5000}]
[null,null,null,"SO2e Emissionen",null,{"$f":"F19+F28+F32+F36+F44+F59+F63","v":15}]

{"sheet":"individuelle Daten","index":6,"n_rows":26,"n_cols":5,"rows_kept":26,"cut":false,"hidden":false,"merged":[]}
[]
[null,"Name Wirtschaftsdünger",null,"Alternative 1","Alternative 2"]
[]
[null,"Stickstoff (kg) in t FM",null,0,0]
[null,"Phosphat (kg) in t FM",null,0,0]
[null,"Kaliumoxid (kg) in t FM",null,0,0]
[null,"Methanertrag (ln) in t FM",null,0,0]
[null,"Preis pro t (€)",null,0,0]
[null,"CO2-Emissionen Lagerung pro t (kg)",null,0,0]
[null,"SO2-Emissionen Lagerung pro t (kg)",null,0,0]
[null,"CO2-Emissionen Ausbringung pro t (kg)",null,0,0]
[null,"SO2-Emissionen Ausbringung pro t (kg)",null,0,0]
[null,"Fugatfaktor",null,0,0]
[]
[]
[]
[null,"Name Energiepflanze",null,"Alternative 1","Alternative 2"]
[]
[null,"Stickstoff (kg) in t FM",null,0,0]
[null,"Phosphat (kg) in t FM",null,0,0]
[null,"Kaliumoxid (kg) in t FM",null,0,0]
[null,"Methanertrag (ln) in t FM",null,0,0]
[null,"Preis pro t (€)",null,0,0]
[null,"CO2-Emissionen Anbau pro kg (kg)",null,0,0]
[null,"SO2-Emissionen Anbau pro kg (kg)",null,0,0]
[null,"Fugatfaktor",null,0,0]

{"sheet":"Grunddaten","index":7,"n_rows":45,"n_cols":8,"rows_kept":45,"cut":false,"hidden":true,"merged":[]}
["Wirtschaftsdünger","-","flüssige Schweinegülle","Schweinegülle (Dekanter)","Geflügelmist",{"$f":"'individuelle Daten'!D2","v":"Alternative 1"},{"$f":"'individuelle Daten'!E2","v":"Alternative 2"}]
[null,null,null,null,null," "," "]
["Stickstoff (kg) in t FM",0,5,9.8000000000000007,21,{"$f":"'individuelle Daten'!D4","v":0},{"$f":"'individuelle Daten'!E4","v":0}]
["Phosphat (kg) in t FM",0,3.2,15.6,17,{"$f":"'individuelle Daten'!D5","v":0},{"$f":"'individuelle Daten'!E5","v":0}]
["Kaliumoxid (kg) in t FM",0,3.7,3.9,22,{"$f":"'individuelle Daten'!D6","v":0},{"$f":"'individuelle Daten'!E6","v":0}]
["Methanertrag (ln) in t FM",0,12,35,82,{"$f":"'individuelle Daten'!D7","v":0},{"$f":"'individuelle Daten'!E7","v":0}]
["Preis pro t (€)",0,12,0,-10,{"$f":"'individuelle Daten'!D8","v":0},{"$f":"'individuelle Daten'!E8","v":0}]
["CO2-Emissionen Lagerung pro t (kg)",0,53.41,53.41,56.51,{"$f":"'individuelle Daten'!D9","v":0},{"$f":"'individuelle Daten'!E9","v":0}]
["SO2-Emissionen Lagerung pro t (kg)",0,1.08,1.08,7.82,{"$f":"'individuelle Daten'!D10","v":0},{"$f":"'individuelle Daten'!E10","v":0}]
["CO2-Emissionen Ausbringung pro t (kg)",0,5.73,5.73,5.92,{"$f":"'individuelle Daten'!D11","v":0},{"$f":"'individuelle Daten'!E11","v":0}]
["SO2-Emissionen Ausbringung pro t (kg)",0,0.1,0.1,0.28999999999999998,{"$f":"'individuelle Daten'!D12","v":0},{"$f":"'individuelle Daten'!E12","v":0}]
["Fugatfaktor",0,0.98,0.96,0.8,{"$f":"'individuelle Daten'!D13","v":0},{"$f":"'individuelle Daten'!E13","v":0}]
["Konsistenz","flüssig","flüssig","fest","fest","flüssig","flüssig"]
[]
[]
[]
["Energiepflanzen","-","Silomais","Ganzpflanzensilage","Zuckerrüben","Getreidekörner",{"$f":"'individuelle Daten'!D17","v":"Alternative 1"},{"$f":"'individuelle Daten'!E17","v":"Alternative 2"}]
[null,null,null,null,null,null," "," "]
["Stickstoff (kg) in t FM",0,4.3,4,1.8,15.1,{"$f":"'individuelle Daten'!D19","v":0},{"$f":"'individuelle Daten'!E19","v":0}]
["Phosphat (kg) in t FM",0,1.8,1.4,1,8,{"$f":"'individuelle Daten'!D20","v":0},{"$f":"'individuelle Daten'!E20","v":0}]
["Kaliumoxid (kg) in t FM",0,5.0999999999999996,5.8,2.5,6,{"$f":"'individuelle Daten'!D21","v":0},{"$f":"'individuelle Daten'!E21","v":0}]
["Methanertrag (ln) in t FM",0,112.4,95,75.3,320.3,{"$f":"'individuelle Daten'!D22","v":0},{"$f":"'individuelle Daten'!E22","v":0}]
["Preis pro t (€)",0,34,35,30,140,{"$f":"'individuelle Daten'!D23","v":0},{"$f":"'individuelle Daten'!E23","v":0}]
["CO2-Emissionen Anbau pro kg (kg)",0,72.41,72.47,40.53,443.14,{"$f":"'individuelle Daten'!D24","v":0},{"$f":"'individuelle Daten'!E24","v":0}]
["SO2-Emissionen Anbau pro kg (kg)",0,0.89,0.59,0.16,1.56,{"$f":"'individuelle Daten'!D25","v":0},{"$f":"'individuelle Daten'!E25","v":0}]
["Fugatfaktor",0,0.76,0.75,0.8,0.25,{"$f":"'individuelle Daten'!D26","v":0},{"$f":"'individuelle Daten'!E26","v":0}]
[]
[]
[]
[]
["Transportmedium","-","Gülleauflieger","Kombiliner","Kipp-LKW"]
[]
["variable Kosten pro km und t",0,8.5000000000000006E-2,0.05,0.05]
["fixe Kosten pro t",0,2.6,4,4]
["Dieselverbrauch leer",0,0.13200000000000001,0.14599999999999999,0.13200000000000001]
["Dieselverbrauch voll",0,0.377,0.377,0.377]
["Nutzlast",1,26,24.5,26]
[]
[]
[]
[]
["weitere Emissionen","Diesel","Herstellung Stickstoff","Herstellung Phosphat","Herstellung Kaliumoxid","Ausbringung Gärrest","Ausbringung Mineraldünger"]
[]
["CO2-Emissionen",2.8653,1.19,7.51,0.67,5.67,5.77]
["SO2-Emissionen",3.5599999999999998E-5,0.02,0.03,1.1000000000000001E-3,0.22,0.02]

{"sheet":"Zwischenrechnungen","index":8,"n_rows":48,"n_cols":18,"rows_kept":48,"cut":false,"hidden":true,"merged":[]}
[]
[]
[]
[null,null,"Substrat","Menge","Einsparung","Neue Substratmenge","Methan",null,null,null,"Stickstoff",null,null,"Phosphat",null,null,"Kaliumoxid"]
[null,null,null,null,null,null,"Methanmenge (alt)","Benötigt für Zwischenrechnung",null,null,"alt","neu",null,"alt","neu",null,"alt","neu"]
[null,"Energiepflanze 1.",{"$f":"Substitution!C8","v":"-"},{"$f":"Substitution!D8","v":0},{"$f":"D6-F6","v":0},{"$f":"IF(H6>=G6,0,D6-H6/HLOOKUP(C6,Grunddaten!$B$17:$H$26,6,FALSE))","v":0},{"$f":"HLOOKUP(C6,Grunddaten!$B$17:$H$26,6,FALSE)*D6","v":0},{"$f":"H21","v":0},null,null,{"$f":"D6*HLOOKUP(C6,Grunddaten!B17:H26,3,FALSE)","v":0},{"$f":"F6*HLOOKUP(C6,Grunddaten!$B$17:$H$26,3,FALSE)","v":0},null,{"$f":"D6*HLOOKUP(C6,Grunddaten!$B$17:$H$26,4,FALSE)","v":0},{"$f":"F6*HLOOKUP(C6,Grunddaten!$B$17:$H$26,4,FALSE)","v":0},null,{"$f":"D6*HLOOKUP(C6,Grunddaten!$B$17:$H$26,5,FALSE)","v":0},{"$f":"F6*HLOOKUP(C6,Grunddaten!$B$17:$H$26,5,FALSE)","v":0}]
[null,"Energiepflanze 2.",{"$f":"Substitution!C9","v":"-"},{"$f":"Substitution!D9","v":0},{"$f":"D7-F7","v":0},{"$f":"IF(H7>=G7,0,IF(H7<0,D7,D7-H7/HLOOKUP(C7,Grunddaten!$B$17:$H$26,6,FALSE)))","v":0},{"$f":"HLOOKUP(C7,Grunddaten!$B$17:$H$26,6,FALSE)*D7","v":0},{"$f":"H6-G6","v":0},null,null,{"$f":"D7*HLOOKUP(C7,Grunddaten!$B$17:$H$26,3,FALSE)","v":0},{"$f":"F7*HLOOKUP(C7,Grunddaten!$B$17:$H$26,3,FALSE)","v":0},null,{"$f":"D7*HLOOKUP(C7,Grunddaten!$B$17:$H$26,4,FALSE)","v":0},{"$f":"F7*HLOOKUP(C7,Grunddaten!$B$17:$H$26,4,FALSE)","v":0},null,{"$f":"D7*HLOOKUP(C7,Grunddaten!$B$17:$H$26,5,FALSE)","v":0},{"$f":"F7*HLOOKUP(C7,Grunddaten!$B$17:$H$26,5,FALSE)","v":0}]
[null,"Energiepflanze 3.",{"$f":"Substitution!C10","v":"-"},{"$f":"Substitution!D10","v":0},0,{"$f":"IF(H8>=G8,0,IF(H8<0,D8,D8-H8/HLOOKUP(C8,Grunddaten!$B$17:$H$26,6,FALSE)))","v":0},{"$f":"HLOOKUP(C8,Grunddaten!$B$17:$H$26,6,FALSE)*D8","v":0},{"$f":"H7-G7","v":0},null,null,{"$f":"D8*HLOOKUP(C8,Grunddaten!$B$17:$H$26,3,FALSE)","v":0},{"$f":"F8*HLOOKUP(C8,Grunddaten!$B$17:$H$26,3,FALSE)","v":0},null,{"$f":"D8*HLOOKUP(C8,Grunddaten!$B$17:$H$26,4,FALSE)","v":0},{"$f":"F8*HLOOKUP(C8,Grunddaten!$B$17:$H$26,4,FALSE)","v":0},null,{"$f":"D8*HLOOKUP(C8,Grunddaten!$B$17:$H$26,5,FALSE)","v":0},{"$f":"F8*HLOOKUP(C8,Grunddaten!$B$17:$H$26,5,FALSE)","v":0}]
[null,"Energiepflanze 4.",{"$f":"Substitution!C11","v":"-"},{"$f":"Substitution!D11","v":0},0,{"$f":"IF(H9>=G9,0,IF(H9<0,D9,D9-H9/HLOOKUP(C9,Grunddaten!$B$17:$H$26,6,FALSE)))","v":0},{"$f":"HLOOKUP(C9,Grunddaten!$B$17:$H$26,6,FALSE)*D9","v":0},{"$f":"H8-G8","v":0},null,null,{"$f":"D9*HLOOKUP(C9,Grunddaten!$B$17:$H$26,3,FALSE)","v":0},{"$f":"F9*HLOOKUP(C9,Grunddaten!$B$17:$H$26,3,FALSE)","v":0},null,{"$f":"D9*HLOOKUP(C9,Grunddaten!$B$17:$H$26,4,FALSE)","v":0},{"$f":"F9*HLOOKUP(C9,Grunddaten!$B$17:$H$26,4,FALSE)","v":0},null,{"$f":"D9*HLOOKUP(C9,Grunddaten!$B$17:$H$26,5,FALSE)","v":0},{"$f":"F9*HLOOKUP(C9,Grunddaten!$B$17:$H$26,5,FALSE)","v":0}]
[null,"Energiepflanze 5.",{"$f":"Substitution!C12","v":"-"},{"$f":"Substitution!D12","v":0},0,{"$f":"IF(H10>=G10,0,IF(H10<0,D10,D10-H10/HLOOKUP(C10,Grunddaten!$B$17:$H$26,6,FALSE)))","v":0},{"$f":"HLOOKUP(C10,Grunddaten!$B$17:$H$26,6,FALSE)*D10","v":0},{"$f":"H9-G9","v":0},null,null,{"$f":"D10*HLOOKUP(C10,Grunddaten!$B$17:$H$26,3,FALSE)","v":0},{"$f":"F10*HLOOKUP(C10,Grunddaten!$B$17:$H$26,3,FALSE)","v":0},null,{"$f":"D10*HLOOKUP(C10,Grunddaten!$B$17:$H$26,4,FALSE)","v":0},{"$f":"F10*HLOOKUP(C10,Grunddaten!$B$17:$H$26,4,FALSE)","v":0},null,{"$f":"D10*HLOOKUP(C10,Grunddaten!$B$17:$H$26,5,FALSE)","v":0},{"$f":"F10*HLOOKUP(C10,Grunddaten!$B$17:$H$26,5,FALSE)","v":0}]
[null,"Energiepflanze 6.",{"$f":"Substitution!C13","v":"-"},{"$f":"Substitution!D13","v":0},0,{"$f":"IF(H11>=G11,0,IF(H11<0,D11,D11-H11/HLOOKUP(C11,Grunddaten!$B$17:$H$26,6,FALSE)))","v":0},{"$f":"HLOOKUP(C11,Grunddaten!$B$17:$H$26,6,FALSE)*D11","v":0},{"$f":"H10-G10","v":0},null,null,{"$f":"D11*HLOOKUP(C11,Grunddaten!$B$17:$H$26,3,FALSE)","v":0},{"$f":"F11*HLOOKUP(C11,Grunddaten!$B$17:$H$26,3,FALSE)","v":0},null,{"$f":"D11*HLOOKUP(C11,Grunddaten!$B$17:$H$26,4,FALSE)","v":0},{"$f":"F11*HLOOKUP(C11,Grunddaten!$B$17:$H$26,4,FALSE)","v":0},null,{"$f":"D11*HLOOKUP(C11,Grunddaten!$B$17:$H$26,5,FALSE)","v":0},{"$f":"F11*HLOOKUP(C11,Grunddaten!$B$17:$H$26,5,FALSE)","v":0}]
[null,null,null,{"$f":"SUM(D6:D11)","v":0},{"$f":"SUM(E6:E11)","v":0},{"$f":"SUM(F6:F11)","v":0},{"$f":"SUM(G6:G11)","v":0}]
[]
[]
[]
[]
[null,null,"Wirtschaftsdünger","alte Menge","zusätzliche Menge","neue Menge","alte Methanmenge","zusätzliche Methanmenge"]
[null,"Wirtschaftsdünger 1.",{"$f":"Substitution!C21","v":"-"},{"$f":"Substitution!D21","v":0},{"$f":"Substitution!F21","v":0},{"$f":"Substitution!G21","v":0},{"$f":"HLOOKUP(C18,Grunddaten!$B$1:$G$12,6,FALSE)*D18","v":0},{"$f":"HLOOKUP(C18,Grunddaten!$B$1:$G$12,6,FALSE)*E18","v":0},null,null,{"$f":"D18*HLOOKUP(C18,Grunddaten!$B$1:$G$12,3,FALSE)","v":0},{"$f":"F18*HLOOKUP(C18,Grunddaten!$B$1:$G$12,3,FALSE)","v":0},null,{"$f":"D18*HLOOKUP(C18,Grunddaten!$B$1:$G$12,4,FALSE)","v":0},{"$f":"F18*HLOOKUP(C18,Grunddaten!$B$1:$G$12,4,FALSE)","v":0},null,{"$f":"D18*HLOOKUP(C18,Grunddaten!$B$1:$G$12,5,FALSE)","v":0},{"$f":"F18*HLOOKUP(C18,Grunddaten!$B$1:$G$12,5,FALSE)","v":0}]
[null,"Wirtschaftsdünger 2.",{"$f":"Substitution!C22","v":"-"},{"$f":"Substitution!D22","v":0},{"$f":"Substitution!F22","v":0},{"$f":"Substitution!G22","v":0},{"$f":"HLOOKUP(C19,Grunddaten!$B$1:$G$12,6,FALSE)*D19","v":0},{"$f":"HLOOKUP(C19,Grunddaten!$B$1:$G$12,6,FALSE)*E19","v":0},null,null,{"$f":"D19*HLOOKUP(C19,Grunddaten!$B$1:$G$12,3,FALSE)","v":0},{"$f":"F19*HLOOKUP(C19,Grunddaten!$B$1:$G$12,3,FALSE)","v":0},null,{"$f":"D19*HLOOKUP(C19,Grunddaten!$B$1:$G$12,4,FALSE)","v":0},{"$f":"F19*HLOOKUP(C19,Grunddaten!$B$1:$G$12,4,FALSE)","v":0},null,{"$f":"D19*HLOOKUP(C19,Grunddaten!$B$1:$G$12,5,FALSE)","v":0},{"$f":"F19*HLOOKUP(C19,Grunddaten!$B$1:$G$12,5,FALSE)","v":0}]
[null,"Wirtschaftsdünger 3.",{"$f":"Substitution!C23","v":"-"},{"$f":"Substitution!D23","v":0},{"$f":"Substitution!F23","v":0},{"$f":"Substitution!G23","v":0},{"$f":"HLOOKUP(C20,Grunddaten!$B$1:$G$12,6,FALSE)*D20","v":0},{"$f":"HLOOKUP(C20,Grunddaten!$B$1:$G$12,6,FALSE)*E20","v":0},null,null,{"$f":"D20*HLOOKUP(C20,Grunddaten!$B$1:$G$12,3,FALSE)","v":0},{"$f":"F20*HLOOKUP(C20,Grunddaten!$B$1:$G$12,3,FALSE)","v":0},null,{"$f":"D20*HLOOKUP(C20,Grunddaten!$B$1:$G$12,4,FALSE)","v":0},{"$f":"F20*HLOOKUP(C20,Grunddaten!$B$1:$G$12,4,FALSE)","v":0},null,{"$f":"D20*HLOOKUP(C20,Grunddaten!$B$1:$G$12,5,FALSE)","v":0},{"$f":"F20*HLOOKUP(C20,Grunddaten!$B$1:$G$12,5,FALSE)","v":0}]
[null,"Gesamtmenge",null,null,null,null,{"$f":"SUM(G18:G20)","v":0},{"$f":"SUM(H18:H20)","v":0}]
[null,null,null,null,null,null,null,null,null,"Stickstoff gesamt",{"$f":"SUM(K6:K21)","v":0},{"$f":"SUM(L6:L20)","v":0},"Phpshat gesamt",{"$f":"SUM(N6:N21)","v":0},{"$f":"SUM(O6:O20)","v":0},"Kaliumoxid gesamt",{"$f":"SUM(Q6:Q21)","v":0},{"$f":"SUM(R6:R20)","v":0}]
[null,null,null,null,null,"Methanertrag gesamt",{"$f":"G12+G21","v":0}]
[null,null,null,null,null,null,null,null,null,"Stickstoffzuwachs",null,{"$f":"L22-K22","v":0},"Phosphatzuwachs",null,{"$f":"O22-N22","v":0},"Kaliumoxidzuwachs",null,{"$f":"R22-Q22","v":0}]
[]
[]
[]
[]
[null,null,"Einsparung Energiepflanzen",null,null,"Einsparung Lagerzeitverkürzung",null,null,null,null,"Ausbringungsverluste "]
[null,null,null,null,null,null,null,null,null,null,"zusätzliche Menge WD"]
[null,null,"CO2","SO2",null,null,"CO2","SO2",null,null,null,"Stickstoff","CO2","SO2"]
[null,"Substrat 1.",{"$f":"E6*HLOOKUP(C6,Grunddaten!$B$17:$H$26,8,FALSE)","v":0},{"$f":"E6*HLOOKUP(C6,Grunddaten!$B$17:$H$26,9,FALSE)","v":0},null,"Wirtschaftsdünger 1.",{"$f":"E18*HLOOKUP(C18,Grunddaten!$B$1:$G$12,8,FALSE)","v":0},{"$f":"E18*HLOOKUP(C18,Grunddaten!$B$1:$G$12,9,FALSE)","v":0},null,null,"Wirtschaftsdünger 1.",{"$f":"E18*HLOOKUP(C18,Grunddaten!$B$1:$G$12,3,FALSE)","v":0},{"$f":"L32*HLOOKUP(C18,Grunddaten!$B$1:$G$12,10,FALSE)","v":0},{"$f":"L32*HLOOKUP(C18,Grunddaten!$B$1:$G$12,11,FALSE)","v":0}]
[null,"Substrat 2.",{"$f":"E7*HLOOKUP(C7,Grunddaten!$B$17:$H$26,8,FALSE)","v":0},{"$f":"E7*HLOOKUP(C7,Grunddaten!$B$17:$H$26,9,FALSE)","v":0},null,"Wirtschaftsdünger 2.",{"$f":"E19*HLOOKUP(C19,Grunddaten!$B$1:$G$12,8,FALSE)","v":0},{"$f":"E19*HLOOKUP(C19,Grunddaten!$B$1:$G$12,9,FALSE)","v":0},null,null,"Wirtschaftsdünger 2.",{"$f":"E19*HLOOKUP(C19,Grunddaten!$B$1:$G$12,3,FALSE)","v":0},{"$f":"L33*HLOOKUP(C19,Grunddaten!$B$1:$G$12,10,FALSE)","v":0},{"$f":"L33*HLOOKUP(C19,Grunddaten!$B$1:$G$12,11,FALSE)","v":0}]
[null,"Substrat 3.",{"$f":"E8*HLOOKUP(C8,Grunddaten!$B$17:$H$26,8,FALSE)","v":0},{"$f":"E8*HLOOKUP(C8,Grunddaten!$B$17:$H$26,9,FALSE)","v":0},null,"Wirtschaftsdünger 3.",{"$f":"E20*HLOOKUP(C20,Grunddaten!$B$1:$G$12,8,FALSE)","v":0},{"$f":"E20*HLOOKUP(C20,Grunddaten!$B$1:$G$12,9,FALSE)","v":0},null,null,"Wirtschaftsdünger 3.",{"$f":"E20*HLOOKUP(C20,Grunddaten!$B$1:$G$12,3,FALSE)","v":0},{"$f":"L34*HLOOKUP(C20,Grunddaten!$B$1:$G$12,10,FALSE)","v":0},{"$f":"L34*HLOOKUP(C20,Grunddaten!$B$1:$G$12,11,FALSE)","v":0}]
[null,"Substrat 4.",{"$f":"E9*HLOOKUP(C9,Grunddaten!$B$17:$H$26,8,FALSE)","v":0},{"$f":"E9*HLOOKUP(C9,Grunddaten!$B$17:$H$26,9,FALSE)","v":0},null,"Summe",{"$f":"SUM(G32:G34)","v":0},{"$f":"SUM(H32:H34)","v":0},null,null,"Summe",{"$f":"SUM(L32:L34)","v":0},{"$f":"SUM(M32:M34)","v":0},0]
[null,"Substrat 5.",{"$f":"E10*HLOOKUP(C10,Grunddaten!$B$17:$H$26,8,FALSE)","v":0},{"$f":"E10*HLOOKUP(C10,Grunddaten!$B$17:$H$26,9,FALSE)","v":0}]
[null,"Substrat 6.",{"$f":"E11*HLOOKUP(C11,Grunddaten!$B$17:$H$26,8,FALSE)","v":0},{"$f":"E11*HLOOKUP(C11,Grunddaten!$B$17:$H$26,9,FALSE)","v":0},null,null,null,null,null,null,"Ausbringung Gärrest",{"$f":"L24","v":0},{"$f":"L37*HLOOKUP(K37,Grunddaten!B42:G45,3,FALSE)","v":0},{"$f":"L37*HLOOKUP(K37,Grunddaten!B42:G45,4,FALSE)","v":0}]
[null,"Summe",{"$f":"SUM(C32:C37)","v":0},{"$f":"SUM(D32:D37)","v":0},null,null,null,null,null,null,"Ausbringung Mineraldünger",{"$f":"'ökologische Auswirkungen'!F23","v":0},{"$f":"L38*HLOOKUP(K38,Grunddaten!B42:G45,3,FALSE)","v":0},{"$f":"L38*HLOOKUP(K38,Grunddaten!B42:G45,4,FALSE)","v":0}]
[]
[null,null,null,null,null,null,null,null,null,null,"Summe",null,{"$f":"M37-M38-M35","v":0},0]
[]
[null,null,"Emissionen pro Tonne verursacht durch den Transport"]
[]
[null,null,"Dieselverbrauch pro Tonne","Transportmenge","Dieselverbrauch",null,null,6,9,12]
[null,"Wirtschaftsdünger 1.",{"$f":"IF(HLOOKUP(Substitution!C21,Grunddaten!$B$1:$G$13,13,FALSE)=\"flüssig\",('ökologische Auswirkungen'!$F$6*'ökologische Auswirkungen'!$F$12+'ökologische Auswirkungen'!$F$10*'ökologische Auswirkungen'!$F$13)/HLOOKUP('ökologische Auswirkungen'!F7,Grunddaten!$B$31:$E$37,7,FALSE),('ökologische Auswirkungen'!$F$6*'ökologische Auswirkungen'!$F$14+'ökologische Auswirkungen'!$F$11*'ökologische Auswirkungen'!$F$15)/Grunddaten!$E$37)","v":0},{"$f":"Substitution!F21","v":0},{"$f":"C45*D45","v":0},null,null,"Ja","Nein"]
[null,"Wirtschaftsdünger 2.",{"$f":"IF(HLOOKUP(Substitution!C22,Grunddaten!$B$1:$G$13,13,FALSE)=\"flüssig\",('ökologische Auswirkungen'!$F$6*'ökologische Auswirkungen'!$F$12+'ökologische Auswirkungen'!$F$10*'ökologische Auswirkungen'!$F$13)/HLOOKUP('ökologische Auswirkungen'!F8,Grunddaten!$B$31:$E$37,7,FALSE),('ökologische Auswirkungen'!$F$6*'ökologische Auswirkungen'!$F$14+'ökologische Auswirkungen'!$F$11*'ökologische Auswirkungen'!$F$15)/Grunddaten!$E$37)","v":0},{"$f":"Substitution!F22","v":0},{"$f":"C46*D46","v":0}]
[null,"Wirtschaftsdünger 3.",{"$f":"IF(HLOOKUP(Substitution!C23,Grunddaten!$B$1:$G$13,13,FALSE)=\"flüssig\",('ökologische Auswirkungen'!$F$6*'ökologische Auswirkungen'!$F$12+'ökologische Auswirkungen'!$F$10*'ökologische Auswirkungen'!$F$13)/HLOOKUP('ökologische Auswirkungen'!F9,Grunddaten!$B$31:$E$37,7,FALSE),('ökologische Auswirkungen'!$F$6*'ökologische Auswirkungen'!$F$14+'ökologische Auswirkungen'!$F$11*'ökologische Auswirkungen'!$F$15)/Grunddaten!$E$37)","v":0},{"$f":"Substitution!F23","v":0},0]
[null,null,null,null,{"$f":"SUM(E45:E47)","v":0}]